[Event "Titled Tuesday Blitz November 14 Early 2023"]
[White "The_Sherman_Variation"]
[Black "Hafiz, Arif Abdul"]
[BlackFideId "7104227"]
[WhiteElo "2568"]
[BlackElo "2837"]
[Result "1/2-1/2"]
[Round "2"]
[TimeControl "180+1"]
[Date "2023.11.14"]
[WhiteClock "0:00:19"]
[BlackClock "0:00:06"]
[Board "53"]

1. e4 {[%clk 0:03:00]}  e5 {[%clk 0:03:00]} 2. Nf3 {[%clk 0:03:00]}  Nc6 {[%clk 0:03:00]} 3. d4 {[%clk 0:03:00]}  exd4 {[%clk 0:03:01]} 4. Nxd4 {[%clk 0:03:01]}  Nf6 {[%clk 0:03:01]} 5. Nxc6 {[%clk 0:03:00]}  bxc6 {[%clk 0:03:02]} 6. Qe2 {[%clk 0:03:01]}  Bc5 {[%clk 0:02:52]} 7. e5 {[%clk 0:03:01]}  Nd5 {[%clk 0:02:51]} 8. c4 {[%clk 0:03:02]}  Ne7 {[%clk 0:02:47]} 9. Be3 {[%clk 0:03:01]}  Bxe3 {[%clk 0:02:43]} 10. Qxe3 {[%clk 0:03:02]}  O-O {[%clk 0:02:43]} 11. Nc3 {[%clk 0:03:01]}  d5 {[%clk 0:02:42]} 12. O-O-O {[%clk 0:02:57]}  Nf5 {[%clk 0:02:35]} 13. Qf4 {[%clk 0:02:55]}  Be6 {[%clk 0:02:28]} 14. Bd3 {[%clk 0:02:50]}  Qh4 {[%clk 0:02:22]} 15. Qxh4 {[%clk 0:02:29]}  Nxh4 {[%clk 0:02:22]} 16. Rhg1 {[%clk 0:02:28]}  g5 {[%clk 0:01:59]} 17. cxd5 {[%clk 0:02:09]}  cxd5 {[%clk 0:01:56]} 18. Bb5 {[%clk 0:02:09]}  Rad8 {[%clk 0:01:48]} 19. Bc6 {[%clk 0:02:07]}  d4 {[%clk 0:01:45]} 20. Ne4 {[%clk 0:02:07]}  h6 {[%clk 0:01:45]} 21. Rd2 {[%clk 0:01:53]}  Kg7 {[%clk 0:01:43]} 22. Nf6 {[%clk 0:01:50]}  Ng6 {[%clk 0:01:36]} 23. Nh5+ {[%clk 0:01:44]}  Kh8 {[%clk 0:01:36]} 24. Re1 {[%clk 0:01:43]}  Bxa2 {[%clk 0:01:25]} 25. g3 {[%clk 0:01:37]}  Bd5 {[%clk 0:01:24]} 26. Bxd5 {[%clk 0:01:29]}  Rxd5 {[%clk 0:01:25]} 27. f4 {[%clk 0:01:29]}  Ne7 {[%clk 0:00:57]} 28. Nf6 {[%clk 0:01:25]}  Rdd8 {[%clk 0:00:50]} 29. Red1 {[%clk 0:01:14]}  c5 {[%clk 0:00:50]} 30. Rc2 {[%clk 0:01:06]}  gxf4 {[%clk 0:00:47]} 31. gxf4 {[%clk 0:01:06]}  Nd5 {[%clk 0:00:47]} 32. Rxc5 {[%clk 0:01:02]}  Nxf4 {[%clk 0:00:46]} 33. Rc4 {[%clk 0:00:55]}  Rc8 {[%clk 0:00:45]} 34. Rxc8 {[%clk 0:00:51]}  Rxc8+ {[%clk 0:00:46]} 35. Kd2 {[%clk 0:00:51]}  Rb8 {[%clk 0:00:44]} 36. Kc2 {[%clk 0:00:44]}  d3+ {[%clk 0:00:43]} 37. Kb1 {[%clk 0:00:42]}  Rb5 {[%clk 0:00:40]} 38. Rg1 {[%clk 0:00:38]}  Ng6 {[%clk 0:00:40]} 39. e6 {[%clk 0:00:39]}  Kg7 {[%clk 0:00:34]} 40. Ne8+ {[%clk 0:00:37]}  Kf8 {[%clk 0:00:32]} 41. exf7 {[%clk 0:00:38]}  Rg5 {[%clk 0:00:26]} 42. Rf1 {[%clk 0:00:31]}  d2 {[%clk 0:00:14]} 43. Kc2 {[%clk 0:00:27]}  Ne5 {[%clk 0:00:14]} 44. Nf6 {[%clk 0:00:24]}  Rg7 {[%clk 0:00:10]} 45. Re1 {[%clk 0:00:18]}  Rxf7 {[%clk 0:00:07]} 46. Rxe5 {[%clk 0:00:19]}  Rxf6 {[%clk 0:00:07]} 47. Kxd2 {[%clk 0:00:20]}  Rf2+ {[%clk 0:00:07]} 48. Re2 {[%clk 0:00:20]}  Rf6 {[%clk 0:00:05]} 49. Kc3 {[%clk 0:00:20]}  Rf3+ {[%clk 0:00:04]} 50. Kc4 {[%clk 0:00:20]}  Rh3 {[%clk 0:00:04]} 51. Kb5 {[%clk 0:00:20]}  Rb3+ {[%clk 0:00:04]} 52. Kc6 {[%clk 0:00:20]}  Rb6+ {[%clk 0:00:03]} 53. Kc7 {[%clk 0:00:20]}  Kf7 {[%clk 0:00:03]} 54. Rc2 {[%clk 0:00:19]}  Rb3 {[%clk 0:00:02]} 55. Rc6 {[%clk 0:00:16]}  a5 {[%clk 0:00:01]} 56. Rxh6 {[%clk 0:00:16]}  Rxb2 {[%clk 0:00:02]} 57. Ra6 {[%clk 0:00:16]}  Rc2+ {[%clk 0:00:03]} 58. Kb6 {[%clk 0:00:16]}  Rxh2 {[%clk 0:00:04]} 59. Rxa5 {[%clk 0:00:17]}  Rh6+ {[%clk 0:00:04]} 60. Kb7 {[%clk 0:00:17]}  Rf6 {[%clk 0:00:04]} 61. Rc5 {[%clk 0:00:18]}  Kg6 {[%clk 0:00:05]} 62. Rc6 {[%clk 0:00:18]}  Rxc6 {[%clk 0:00:06]} 63. Kxc6 {[%clk 0:00:19]} 1/2-1/2


[Site "https://www.chess.com"]

[Event "Titled Tuesday Blitz November 14 Early 2023"]
[White "Mikhailovsky, Vladimir"]
[Black "Nasir, Zehn"]
[WhiteFideId "34105414"]
[BlackFideId "2613239"]
[WhiteElo "2835"]
[BlackElo "2567"]
[Result "0-1"]
[Round "2"]
[TimeControl "180+1"]
[Date "2023.11.14"]
[WhiteClock "0:00:07"]
[BlackClock "0:00:14"]
[Board "54"]

1. e4 {[%clk 0:02:54]}  c6 {[%clk 0:03:00]} 2. d4 {[%clk 0:02:52]}  d5 {[%clk 0:03:01]} 3. Nc3 {[%clk 0:02:52]}  dxe4 {[%clk 0:03:01]} 4. Nge2 {[%clk 0:02:52]}  Nf6 {[%clk 0:02:59]} 5. Ng3 {[%clk 0:02:53]}  Bg4 {[%clk 0:02:53]} 6. Be2 {[%clk 0:02:53]}  Bxe2 {[%clk 0:02:52]} 7. Qxe2 {[%clk 0:02:54]}  Qxd4 {[%clk 0:02:48]} 8. Bf4 {[%clk 0:02:53]}  Nd5 {[%clk 0:02:33]} 9. Nxd5 {[%clk 0:02:36]}  cxd5 {[%clk 0:02:25]} 10. Qb5+ {[%clk 0:02:29]}  Nc6 {[%clk 0:02:22]} 11. c3 {[%clk 0:01:53]}  Qb6 {[%clk 0:02:19]} 12. Qxd5 {[%clk 0:01:52]}  e6 {[%clk 0:02:14]} 13. Qxe4 {[%clk 0:01:48]}  Be7 {[%clk 0:02:03]} 14. O-O {[%clk 0:01:06]}  O-O {[%clk 0:02:03]} 15. b3 {[%clk 0:00:50]}  Rad8 {[%clk 0:01:56]} 16. Be3 {[%clk 0:00:44]}  Qa5 {[%clk 0:01:55]} 17. c4 {[%clk 0:00:43]}  Rd7 {[%clk 0:01:40]} 18. a3 {[%clk 0:00:35]}  Rfd8 {[%clk 0:01:35]} 19. b4 {[%clk 0:00:35]}  Qe5 {[%clk 0:01:29]} 20. Rac1 {[%clk 0:00:23]}  Qxe4 {[%clk 0:00:55]} 21. Nxe4 {[%clk 0:00:24]}  b6 {[%clk 0:00:55]} 22. c5 {[%clk 0:00:20]}  b5 {[%clk 0:00:45]} 23. g3 {[%clk 0:00:13]}  a6 {[%clk 0:00:44]} 24. Kg2 {[%clk 0:00:11]}  Rd3 {[%clk 0:00:43]} 25. Rc3 {[%clk 0:00:11]}  f5 {[%clk 0:00:41]} 26. Rxd3 {[%clk 0:00:07]}  Rxd3 {[%clk 0:00:42]} 27. Ng5 {[%clk 0:00:08]}  Bxg5 {[%clk 0:00:34]} 28. Bxg5 {[%clk 0:00:08]}  h6 {[%clk 0:00:29]} 29. Bc1 {[%clk 0:00:07]}  Kf7 {[%clk 0:00:28]} 30. Re1 {[%clk 0:00:06]}  e5 {[%clk 0:00:26]} 31. Kf1 {[%clk 0:00:06]}  e4 {[%clk 0:00:25]} 32. Ke2 {[%clk 0:00:06]}  Nd4+ {[%clk 0:00:24]} 33. Kf1 {[%clk 0:00:05]}  Ke6 {[%clk 0:00:24]} 34. Be3 {[%clk 0:00:02]}  Nc2 {[%clk 0:00:20]} 35. Rc1 {[%clk 0:00:02]}  Nxe3+ {[%clk 0:00:18]} 36. fxe3 {[%clk 0:00:03]}  Kd7 {[%clk 0:00:18]} 37. Kf2 {[%clk 0:00:02]}  Rxa3 {[%clk 0:00:17]} 38. g4 {[%clk 0:00:02]}  g6 {[%clk 0:00:17]} 39. Kg3 {[%clk 0:00:03]}  Rxe3+ {[%clk 0:00:17]} 40. Kf4 {[%clk 0:00:04]}  Rf3+ {[%clk 0:00:15]} 41. Ke5 {[%clk 0:00:04]}  e3 {[%clk 0:00:15]} 42. gxf5 {[%clk 0:00:04]}  gxf5 {[%clk 0:00:16]} 43. Kd5 {[%clk 0:00:04]}  e2 {[%clk 0:00:15]} 44. Re1 {[%clk 0:00:04]}  Re3 {[%clk 0:00:14]} 45. Kd4 {[%clk 0:00:03]}  Re4+ {[%clk 0:00:14]} 46. Kd3 {[%clk 0:00:04]}  Kc6 {[%clk 0:00:14]} 47. Rxe2 {[%clk 0:00:04]}  Rxe2 {[%clk 0:00:12]} 48. Kxe2 {[%clk 0:00:04]}  a5 {[%clk 0:00:13]} 49. bxa5 {[%clk 0:00:05]}  Kxc5 {[%clk 0:00:13]} 50. Kf3 {[%clk 0:00:05]}  b4 {[%clk 0:00:13]} 51. a6 {[%clk 0:00:06]}  Kb6 {[%clk 0:00:13]} 52. a7 {[%clk 0:00:06]}  Kxa7 {[%clk 0:00:14]} 53. Kf4 {[%clk 0:00:06]}  b3 {[%clk 0:00:14]} 54. Kxf5 {[%clk 0:00:07]}  b2 {[%clk 0:00:15]} 55. Kg6 {[%clk 0:00:08]}  b1=Q+ {[%clk 0:00:15]} 56. Kh5 {[%clk 0:00:08]}  Qh1 {[%clk 0:00:15]} 57. h4 {[%clk 0:00:08]}  Kb6 {[%clk 0:00:15]} 58. Kg4 {[%clk 0:00:08]}  Kc5 {[%clk 0:00:15]} 59. Kh5 {[%clk 0:00:09]}  Kd5 {[%clk 0:00:15]} 60. Kg4 {[%clk 0:00:09]}  h5+ {[%clk 0:00:15]} 61. Kg5 {[%clk 0:00:09]}  Ke5 {[%clk 0:00:15]} 62. Kg6 {[%clk 0:00:07]}  Qxh4 {[%clk 0:00:14]} 0-1


[Site "https://www.chess.com"]

[Event "Titled Tuesday Blitz November 14 Early 2023"]
[White "FREDERICKtheMATE"]
[Black "Bordi, Kevin"]
[BlackFideId "621862"]
[WhiteElo "2566"]
[BlackElo "2834"]
[Result "0-1"]
[Round "2"]
[TimeControl "180+1"]
[Date "2023.11.14"]
[WhiteClock "0:00:00"]
[BlackClock "0:00:07"]
[Board "55"]

1. Nf3 {[%clk 0:03:00]}  d5 {[%clk 0:02:59]} 2. g3 {[%clk 0:03:01]}  Nf6 {[%clk 0:03:00]} 3. Bg2 {[%clk 0:03:01]}  c6 {[%clk 0:03:00]} 4. O-O {[%clk 0:03:02]}  Bf5 {[%clk 0:03:01]} 5. b3 {[%clk 0:03:02]}  e6 {[%clk 0:03:02]} 6. Bb2 {[%clk 0:03:03]}  Nbd7 {[%clk 0:03:02]} 7. c4 {[%clk 0:03:04]}  Be7 {[%clk 0:03:03]} 8. d3 {[%clk 0:03:04]}  O-O {[%clk 0:03:03]} 9. Nbd2 {[%clk 0:03:04]}  h6 {[%clk 0:03:03]} 10. Qc2 {[%clk 0:03:05]}  a5 {[%clk 0:03:03]} 11. a3 {[%clk 0:03:04]}  Qb6 {[%clk 0:03:03]} 12. e4 {[%clk 0:03:04]}  dxe4 {[%clk 0:02:56]} 13. dxe4 {[%clk 0:03:04]}  Bg6 {[%clk 0:02:56]} 14. Bd4 {[%clk 0:02:59]}  Bc5 {[%clk 0:02:50]} 15. Bc3 {[%clk 0:02:56]}  Ng4 {[%clk 0:02:41]} 16. Nb1 {[%clk 0:02:44]}  Ndf6 {[%clk 0:02:40]} 17. Ne5 {[%clk 0:02:39]}  Nxe5 {[%clk 0:02:32]} 18. Bxe5 {[%clk 0:02:40]}  Bd4 {[%clk 0:02:21]} 19. Bxd4 {[%clk 0:02:39]}  Qxd4 {[%clk 0:02:22]} 20. Nc3 {[%clk 0:02:40]}  Rad8 {[%clk 0:02:13]} 21. Rfd1 {[%clk 0:02:39]}  Qc5 {[%clk 0:02:11]} 22. Rd2 {[%clk 0:02:31]}  b5 {[%clk 0:01:57]} 23. Bf1 {[%clk 0:02:00]}  Rxd2 {[%clk 0:01:50]} 24. Qxd2 {[%clk 0:02:00]}  bxc4 {[%clk 0:00:54]} 25. Bxc4 {[%clk 0:01:59]}  Bxe4 {[%clk 0:00:54]} 26. Nxe4 {[%clk 0:01:34]}  Nxe4 {[%clk 0:00:55]} 27. Qe2 {[%clk 0:01:30]}  Nd6 {[%clk 0:00:55]} 28. Bd3 {[%clk 0:01:25]}  Rb8 {[%clk 0:00:54]} 29. Qb2 {[%clk 0:01:13]}  Qd5 {[%clk 0:00:49]} 30. Bc2 {[%clk 0:01:12]}  Nf5 {[%clk 0:00:32]} 31. Rd1 {[%clk 0:01:08]}  Qc5 {[%clk 0:00:32]} 32. Kg2 {[%clk 0:00:59]}  Ne7 {[%clk 0:00:26]} 33. Be4 {[%clk 0:00:51]}  Nd5 {[%clk 0:00:26]} 34. Rc1 {[%clk 0:00:50]}  Qb6 {[%clk 0:00:23]} 35. Bc2 {[%clk 0:00:42]}  h5 {[%clk 0:00:19]} 36. Qe5 {[%clk 0:00:40]}  g6 {[%clk 0:00:17]} 37. Be4 {[%clk 0:00:36]}  Rd8 {[%clk 0:00:17]} 38. Qb2 {[%clk 0:00:31]}  Ne7 {[%clk 0:00:14]} 39. Qf6 {[%clk 0:00:29]}  Nd5 {[%clk 0:00:12]} 40. Qb2 {[%clk 0:00:28]}  Qc7 {[%clk 0:00:08]} 41. Rc5 {[%clk 0:00:26]}  Qb6 {[%clk 0:00:07]} 42. Qc2 {[%clk 0:00:26]}  Nf6 {[%clk 0:00:08]} 43. Bxc6 {[%clk 0:00:24]}  Rc8 {[%clk 0:00:08]} 44. Qc4 {[%clk 0:00:23]}  Nd7 {[%clk 0:00:07]} 45. Bxd7 {[%clk 0:00:20]}  Rxc5 {[%clk 0:00:08]} 46. Qd4 {[%clk 0:00:19]}  Qb7+ {[%clk 0:00:06]} 47. Kh3 {[%clk 0:00:14]}  Rd5 {[%clk 0:00:07]} 48. Qc3 {[%clk 0:00:00]}  Qxd7 {[%clk 0:00:07]} 0-1


[Site "https://www.chess.com"]

[Event "Titled Tuesday Blitz November 14 Early 2023"]
[White "Bilan, Danila"]
[Black "Alexandre, Anne Shopie Elizabeth"]
[WhiteFideId "24161918"]
[BlackFideId "11902418"]
[WhiteElo "2558"]
[BlackElo "2825"]
[Result "0-1"]
[Round "2"]
[TimeControl "180+1"]
[Date "2023.11.14"]
[WhiteClock "0:00:00"]
[BlackClock "0:01:02"]
[Board "59"]

1. d4 {[%clk 0:03:00]}  Nf6 {[%clk 0:02:59]} 2. Nf3 {[%clk 0:03:01]}  e6 {[%clk 0:03:00]} 3. g3 {[%clk 0:02:57]}  b5 {[%clk 0:02:58]} 4. Bg2 {[%clk 0:02:54]}  Bb7 {[%clk 0:02:58]} 5. O-O {[%clk 0:02:55]}  h6 {[%clk 0:02:55]} 6. a4 {[%clk 0:02:49]}  b4 {[%clk 0:02:55]} 7. c4 {[%clk 0:02:50]}  bxc3 {[%clk 0:02:52]} 8. Nxc3 {[%clk 0:02:44]}  Be7 {[%clk 0:02:51]} 9. Qc2 {[%clk 0:02:38]}  Na6 {[%clk 0:02:48]} 10. e4 {[%clk 0:02:29]}  Nb4 {[%clk 0:02:47]} 11. Qb1 {[%clk 0:02:22]}  O-O {[%clk 0:02:43]} 12. Bf4 {[%clk 0:02:03]}  a5 {[%clk 0:02:41]} 13. Rd1 {[%clk 0:01:50]}  d6 {[%clk 0:02:39]} 14. e5 {[%clk 0:01:47]}  Nfd5 {[%clk 0:02:37]} 15. Bd2 {[%clk 0:01:28]}  Rb8 {[%clk 0:02:37]} 16. h4 {[%clk 0:01:07]}  Ba6 {[%clk 0:02:19]} 17. Nb5 {[%clk 0:01:07]}  Bxb5 {[%clk 0:02:06]} 18. axb5 {[%clk 0:01:07]}  Rxb5 {[%clk 0:02:07]} 19. Qe4 {[%clk 0:01:02]}  Qd7 {[%clk 0:02:06]} 20. Bf1 {[%clk 0:00:52]}  Rbb8 {[%clk 0:02:02]} 21. Bxb4 {[%clk 0:00:41]}  Nxb4 {[%clk 0:02:00]} 22. Rxa5 {[%clk 0:00:40]}  d5 {[%clk 0:01:55]} 23. Qg4 {[%clk 0:00:24]}  Ra8 {[%clk 0:01:49]} 24. Rda1 {[%clk 0:00:21]}  Rxa5 {[%clk 0:01:49]} 25. Rxa5 {[%clk 0:00:22]}  Qc6 {[%clk 0:01:49]} 26. Qf4 {[%clk 0:00:11]}  Qc2 {[%clk 0:01:48]} 27. Qd2 {[%clk 0:00:08]}  Qe4 {[%clk 0:01:36]} 28. Kg2 {[%clk 0:00:06]}  Rb8 {[%clk 0:01:32]} 29. Ra7 {[%clk 0:00:06]}  Bd8 {[%clk 0:01:28]} 30. Ra4 {[%clk 0:00:05]}  Be7 {[%clk 0:01:23]} 31. Ra7 {[%clk 0:00:05]}  Rc8 {[%clk 0:01:23]} 32. Rb7 {[%clk 0:00:05]}  Qc2 {[%clk 0:01:15]} 33. Qxc2 {[%clk 0:00:03]}  Nxc2 {[%clk 0:01:16]} 34. Ba6 {[%clk 0:00:03]}  Bf8 {[%clk 0:01:11]} 35. Ra7 {[%clk 0:00:02]}  Rb8 {[%clk 0:01:10]} 36. Rxc7 {[%clk 0:00:03]}  Rxb2 {[%clk 0:01:11]} 37. Rc8 {[%clk 0:00:03]}  Ne3+ {[%clk 0:01:10]} 38. Kg1 {[%clk 0:00:03]}  Ng4 {[%clk 0:01:10]} 39. Ne1 {[%clk 0:00:01]}  Nxf2 {[%clk 0:01:05]} 40. Nd3 {[%clk 0:00:02]}  Nxd3 {[%clk 0:01:04]} 41. Bxd3 {[%clk 0:00:02]}  Rd2 {[%clk 0:01:04]} 42. Rc3 {[%clk 0:00:02]}  g6 {[%clk 0:01:04]} 43. Kf1 {[%clk 0:00:02]}  h5 {[%clk 0:01:04]} 44. Ke1 {[%clk 0:00:03]}  Rg2 {[%clk 0:01:04]} 45. Bf1 {[%clk 0:00:03]}  Rb2 {[%clk 0:01:02]} 46. Ba6 {[%clk 0:00:00]}  Bb4 {[%clk 0:01:02]} 0-1


[Site "https://www.chess.com"]

[Event "Titled Tuesday Blitz November 14 Early 2023"]
[White "Lund, Gunnar"]
[Black "Vakhlamov, Igor L."]
[WhiteFideId "1520814"]
[BlackFideId "24126748"]
[WhiteElo "2556"]
[BlackElo "2819"]
[Result "0-1"]
[Round "2"]
[TimeControl "180+1"]
[Date "2023.11.14"]
[WhiteClock "0:00:55"]
[BlackClock "0:01:45"]
[Board "63"]

1. d4 {[%clk 0:02:51]}  d5 {[%clk 0:02:58]} 2. Bg5 {[%clk 0:02:39]}  h6 {[%clk 0:02:57]} 3. Bf4 {[%clk 0:02:37]}  Nf6 {[%clk 0:02:55]} 4. e3 {[%clk 0:02:38]}  Bf5 {[%clk 0:02:55]} 5. c4 {[%clk 0:02:37]}  e6 {[%clk 0:02:55]} 6. Nc3 {[%clk 0:02:38]}  Bb4 {[%clk 0:02:55]} 7. Nf3 {[%clk 0:02:01]}  O-O {[%clk 0:02:53]} 8. Bd3 {[%clk 0:02:00]}  Bxd3 {[%clk 0:02:50]} 9. Qxd3 {[%clk 0:02:01]}  c5 {[%clk 0:02:50]} 10. O-O {[%clk 0:02:01]}  cxd4 {[%clk 0:02:51]} 11. Nxd4 {[%clk 0:02:00]}  Nbd7 {[%clk 0:02:50]} 12. Bg3 {[%clk 0:01:58]}  Rc8 {[%clk 0:02:37]} 13. cxd5 {[%clk 0:01:58]}  Bxc3 {[%clk 0:02:16]} 14. dxe6 {[%clk 0:01:52]}  Bxb2 {[%clk 0:02:16]} 15. exd7 {[%clk 0:01:52]}  Qxd7 {[%clk 0:02:17]} 16. Rab1 {[%clk 0:01:49]}  Bxd4 {[%clk 0:02:17]} 17. Qxd4 {[%clk 0:01:48]}  Qxd4 {[%clk 0:02:17]} 18. exd4 {[%clk 0:01:49]}  b6 {[%clk 0:02:17]} 19. Rfe1 {[%clk 0:01:46]}  Nd5 {[%clk 0:02:13]} 20. Kf1 {[%clk 0:01:43]}  f6 {[%clk 0:02:09]} 21. Re6 {[%clk 0:01:42]}  Kf7 {[%clk 0:02:09]} 22. Rd6 {[%clk 0:01:40]}  Rfd8 {[%clk 0:02:10]} 23. Rxd8 {[%clk 0:01:29]}  Rxd8 {[%clk 0:02:10]} 24. Rc1 {[%clk 0:01:30]}  Rd7 {[%clk 0:02:10]} 25. Ke2 {[%clk 0:01:28]}  Ne7 {[%clk 0:02:09]} 26. Kd3 {[%clk 0:01:13]}  Ke6 {[%clk 0:02:04]} 27. Rc7 {[%clk 0:01:14]}  Rxc7 {[%clk 0:02:00]} 28. Bxc7 {[%clk 0:01:15]}  Kd5 {[%clk 0:02:01]} 29. Bb8 {[%clk 0:01:09]}  Nc6 {[%clk 0:02:00]} 30. Bf4 {[%clk 0:01:08]}  Nxd4 {[%clk 0:02:00]} 31. Bb8 {[%clk 0:01:08]}  Nc6 {[%clk 0:01:59]} 32. Bf4 {[%clk 0:01:07]}  Ne5+ {[%clk 0:01:59]} 33. Kc3 {[%clk 0:01:06]}  h5 {[%clk 0:01:56]} 34. Be3 {[%clk 0:01:04]}  Ng4 {[%clk 0:01:53]} 35. Kb4 {[%clk 0:00:57]}  Nxe3 {[%clk 0:01:50]} 36. fxe3 {[%clk 0:00:57]}  a6 {[%clk 0:01:49]} 37. a4 {[%clk 0:00:57]}  Ke4 {[%clk 0:01:49]} 38. Kc4 {[%clk 0:00:58]}  h4 {[%clk 0:01:47]} 39. g3 {[%clk 0:00:54]}  hxg3 {[%clk 0:01:45]} 40. hxg3 {[%clk 0:00:55]} 0-1


[Site "https://www.chess.com"]

[Event "Titled Tuesday Blitz November 14 Early 2023"]
[White "RodokininEV"]
[Black "Molina, Roberto Junio Brito"]
[BlackFideId "2109450"]
[WhiteElo "2549"]
[BlackElo "2812"]
[Result "0-1"]
[Round "2"]
[TimeControl "180+1"]
[Date "2023.11.14"]
[WhiteClock "0:00:00"]
[BlackClock "0:00:12"]
[Board "67"]

1. d4 {[%clk 0:03:00]}  d6 {[%clk 0:03:00]} 2. Nf3 {[%clk 0:03:00]}  Nf6 {[%clk 0:02:59]} 3. c4 {[%clk 0:02:58]}  g6 {[%clk 0:02:59]} 4. Nc3 {[%clk 0:02:57]}  Bg7 {[%clk 0:02:59]} 5. e4 {[%clk 0:02:58]}  O-O {[%clk 0:02:59]} 6. Be2 {[%clk 0:02:58]}  e5 {[%clk 0:02:58]} 7. O-O {[%clk 0:02:58]}  Nc6 {[%clk 0:02:58]} 8. d5 {[%clk 0:02:58]}  Ne7 {[%clk 0:02:57]} 9. Ne1 {[%clk 0:02:57]}  Ne8 {[%clk 0:02:54]} 10. f3 {[%clk 0:02:56]}  f5 {[%clk 0:02:54]} 11. g4 {[%clk 0:02:56]}  fxg4 {[%clk 0:02:41]} 12. fxg4 {[%clk 0:02:57]}  Rxf1+ {[%clk 0:02:40]} 13. Bxf1 {[%clk 0:02:57]}  Kh8 {[%clk 0:02:40]} 14. Be3 {[%clk 0:02:54]}  Ng8 {[%clk 0:02:40]} 15. Be2 {[%clk 0:02:48]}  Bh6 {[%clk 0:02:38]} 16. Qd2 {[%clk 0:02:38]}  Bxe3+ {[%clk 0:02:36]} 17. Qxe3 {[%clk 0:02:39]}  Nef6 {[%clk 0:02:31]} 18. h3 {[%clk 0:02:35]}  Bd7 {[%clk 0:02:30]} 19. Nd3 {[%clk 0:02:32]}  b6 {[%clk 0:02:29]} 20. Rc1 {[%clk 0:02:26]}  a5 {[%clk 0:02:28]} 21. b3 {[%clk 0:02:22]}  Kg7 {[%clk 0:02:24]} 22. a3 {[%clk 0:02:20]}  h6 {[%clk 0:02:21]} 23. b4 {[%clk 0:02:02]}  axb4 {[%clk 0:02:20]} 24. axb4 {[%clk 0:02:03]}  Ne8 {[%clk 0:02:14]} 25. c5 {[%clk 0:02:00]}  bxc5 {[%clk 0:02:15]} 26. bxc5 {[%clk 0:02:01]}  Ra3 {[%clk 0:02:04]} 27. Qd2 {[%clk 0:01:58]}  Qh4 {[%clk 0:02:01]} 28. Kg2 {[%clk 0:01:57]}  h5 {[%clk 0:02:01]} 29. Nf2 {[%clk 0:01:49]}  Ngf6 {[%clk 0:01:53]} 30. cxd6 {[%clk 0:01:30]}  cxd6 {[%clk 0:01:34]} 31. gxh5 {[%clk 0:01:20]}  Nxh5 {[%clk 0:01:15]} 32. Bxh5 {[%clk 0:01:18]}  gxh5 {[%clk 0:01:09]} 33. Qe3 {[%clk 0:01:17]}  Nf6 {[%clk 0:00:52]} 34. Qg3+ {[%clk 0:01:11]}  Qxg3+ {[%clk 0:00:53]} 35. Kxg3 {[%clk 0:01:12]}  Kg6 {[%clk 0:00:50]} 36. Kf3 {[%clk 0:01:07]}  h4 {[%clk 0:00:46]} 37. Ke2 {[%clk 0:00:53]}  Nh5 {[%clk 0:00:45]} 38. Kd2 {[%clk 0:00:38]}  Nf4 {[%clk 0:00:39]} 39. Rg1+ {[%clk 0:00:38]}  Kf6 {[%clk 0:00:39]} 40. Rg8 {[%clk 0:00:29]}  Ng6 {[%clk 0:00:19]} 41. Rd8 {[%clk 0:00:24]}  Ke7 {[%clk 0:00:19]} 42. Rg8 {[%clk 0:00:22]}  Be8 {[%clk 0:00:19]} 43. Ng4 {[%clk 0:00:17]}  Ra7 {[%clk 0:00:18]} 44. Rg7+ {[%clk 0:00:15]}  Bf7 {[%clk 0:00:18]} 45. Nh6 {[%clk 0:00:15]}  Kf8 {[%clk 0:00:18]} 46. Rxf7+ {[%clk 0:00:12]}  Rxf7 {[%clk 0:00:18]} 47. Nxf7 {[%clk 0:00:13]}  Kxf7 {[%clk 0:00:19]} 48. Ke3 {[%clk 0:00:11]}  Nf4 {[%clk 0:00:19]} 49. Kf3 {[%clk 0:00:12]}  Nxh3 {[%clk 0:00:19]} 50. Kg4 {[%clk 0:00:12]}  Nf4 {[%clk 0:00:18]} 51. Kxh4 {[%clk 0:00:13]}  Kf6 {[%clk 0:00:18]} 52. Kg4 {[%clk 0:00:12]}  Nd3 {[%clk 0:00:18]} 53. Nb5 {[%clk 0:00:10]}  Ke7 {[%clk 0:00:18]} 54. Kf5 {[%clk 0:00:10]}  Nb4 {[%clk 0:00:17]} 55. Nc3 {[%clk 0:00:09]}  Nc2 {[%clk 0:00:16]} 56. Ne2 {[%clk 0:00:08]}  Nd4+ {[%clk 0:00:10]} 57. Nxd4 {[%clk 0:00:06]}  exd4 {[%clk 0:00:11]} 58. Kf4 {[%clk 0:00:06]}  Kf6 {[%clk 0:00:11]} 59. e5+ {[%clk 0:00:03]}  dxe5+ {[%clk 0:00:11]} 60. Ke4 {[%clk 0:00:04]}  Ke7 {[%clk 0:00:11]} 61. Kxe5 {[%clk 0:00:02]}  d3 {[%clk 0:00:11]} 62. d6+ {[%clk 0:00:00]}  Kd7 {[%clk 0:00:12]} 0-1


[Site "https://www.chess.com"]

[Event "Titled Tuesday Blitz November 14 Early 2023"]
[White "Materia, Marco"]
[Black "LeoLV10"]
[WhiteFideId "45150451"]
[WhiteElo "2810"]
[BlackElo "2547"]
[Result "1-0"]
[Round "2"]
[TimeControl "180+1"]
[Date "2023.11.14"]
[WhiteClock "0:00:26"]
[BlackClock "0:00:19"]
[Board "69"]

1. Nf3 {[%clk 0:03:00]}  c5 {[%clk 0:02:59]} 2. c4 {[%clk 0:03:01]}  Nc6 {[%clk 0:02:57]} 3. e3 {[%clk 0:03:00]}  e6 {[%clk 0:02:54]} 4. d4 {[%clk 0:03:00]}  cxd4 {[%clk 0:02:54]} 5. exd4 {[%clk 0:03:01]}  d5 {[%clk 0:02:55]} 6. Nc3 {[%clk 0:03:01]}  Bb4 {[%clk 0:02:54]} 7. Bg5 {[%clk 0:02:52]}  Qa5 {[%clk 0:02:47]} 8. Qd2 {[%clk 0:02:42]}  Nge7 {[%clk 0:02:41]} 9. c5 {[%clk 0:02:40]}  Bd7 {[%clk 0:02:32]} 10. Bd3 {[%clk 0:02:35]}  f6 {[%clk 0:02:30]} 11. Be3 {[%clk 0:02:31]}  e5 {[%clk 0:02:18]} 12. Bc2 {[%clk 0:02:13]}  exd4 {[%clk 0:02:04]} 13. Nxd4 {[%clk 0:02:13]}  Nxd4 {[%clk 0:02:00]} 14. Qxd4 {[%clk 0:02:03]}  Rc8 {[%clk 0:02:00]} 15. O-O {[%clk 0:01:59]}  Bxc5 {[%clk 0:02:00]} 16. Qd2 {[%clk 0:01:54]}  Bxe3 {[%clk 0:01:43]} 17. Qxe3 {[%clk 0:01:53]}  Kf7 {[%clk 0:01:40]} 18. Rad1 {[%clk 0:01:48]}  Qc5 {[%clk 0:01:20]} 19. Qf3 {[%clk 0:01:43]}  Be6 {[%clk 0:01:18]} 20. Rfe1 {[%clk 0:01:37]}  h5 {[%clk 0:01:09]} 21. h3 {[%clk 0:01:35]}  Rcd8 {[%clk 0:01:00]} 22. Bb3 {[%clk 0:01:29]}  g6 {[%clk 0:00:44]} 23. Rxe6 {[%clk 0:01:01]}  Kxe6 {[%clk 0:00:44]} 24. Ne4 {[%clk 0:01:01]}  Qc6 {[%clk 0:00:36]} 25. Qxf6+ {[%clk 0:01:00]}  Kd7 {[%clk 0:00:36]} 26. Ba4 {[%clk 0:01:01]}  b5 {[%clk 0:00:31]} 27. Qf4 {[%clk 0:00:33]}  bxa4 {[%clk 0:00:28]} 28. Nf6+ {[%clk 0:00:33]}  Ke6 {[%clk 0:00:25]} 29. Re1+ {[%clk 0:00:32]}  Kf7 {[%clk 0:00:22]} 30. Nd7+ {[%clk 0:00:27]}  Kg7 {[%clk 0:00:19]} 31. Rxe7+ {[%clk 0:00:26]}  Kg8 {[%clk 0:00:19]} 32. Qf7# {[%clk 0:00:26]} 1-0


[Site "https://www.chess.com"]